Cogmind - Beta 17 @@@ ROGUE MODE // 2026.08.05 @ 14:30:00 Player: Retknock Result: Destroyed by G-47 Trooper with Particle Gun Performance ------------- Evolutions (0) 0 Regions Visited (1) 200 Robots Destroyed (8) 40 Value Destroyed (203) 203 Prototype IDs (0) 0 Alien Tech Used (0) 0 Bonus (0) 0 TOTAL SCORE: 443 Bonus ------- None Cogmind --------- Core Integrity 0/250 Matter 266/300 Energy 100/100 System Corruption 0% Temperature Cool (15) Movement Core (1350) Ox26 Location -10/Materials Parts ------- > --- POWER (1) -------- (None) > --- PROPULSION (2) --- (None) > --- UTILITY (2) ------ Huge Storage Unit > --- WEAPON (2) ------- (None) > --- INVENTORY (25) --- Ion Engine Aluminum Leg Aluminum Leg Aluminum Leg Peak State ------------ > --- POWER ------------ Light Ion Engine > --- PROPULSION ------- Wheel Wheel > --- UTILITY ---------- Small Storage Unit Improved Terrain Scanner > --- WEAPON ----------- Medium Laser Assault Rifle > --- INVENTORY -------- Ion Engine Aluminum Leg Aluminum Leg Assault Rifle [Rating: 9] Favorites ----------- Power Light Ion Engine Engine Light Ion Engine Propulsion Wheel Wheel Wheel Utility Huge Storage Unit Device Seismic Detector Storage Huge Storage Unit Weapon Assault Rifle Energy Gun Medium Laser Ballistic Gun Assault Rifle Build | -11 -10 ------- Run | Yrd Mat Slots Evolved . | . . Power . | . . Propulsion . | . . Utility . | . . Weapon . | . . Parts Attached 13 | 8 5 Power 1 | 1 . Engine 1 | 1 . Core . | . . Reactor . | . . Propulsion 4 | 2 2 Treads . | . . Leg . | . . Wheel 4 | 2 2 Hover . | . . Flight . | . . Utility 5 | 3 2 Device 3 | 2 1 Storage 2 | 1 1 Processor . | . . Hackware . | . . Protection . | . . Artifact . | . . Weapon 3 | 2 1 Energy Gun 1 | 1 . Energy Cannon . | . . Ballistic Gun 2 | 1 1 Ballistic Cannon . | . . Launcher . | . . Special Weapon . | . . Impact Weapon . | . . Slashing Weapon . | . . Piercing Weapon . | . . Special Melee Weapon . | . . Unidentified Prototypes . | . . Parts Lost 10 | . 10 Power 1 | . 1 Propulsion 4 | . 4 Utility 2 | . 2 Weapon 3 | . 3 Highest Loss Streak 9 | . 9 To Critical Strikes . | . . Average Backups 6 | 4 6 Power . | . 1 Propulsion 3 | 2 4 Utility . | . . Weapon . | . . Tool/Special . | . . Unused Backups 4 | . 4 Power 1 | . 1 Propulsion 3 | . 3 Utility . | . . Weapon . | . . Tool/Special . | . . Average Slot Usage (%) 82 | . 82 Engine 11 | . 11 Wheel 25 | . 25 Device 4 | . 4 Storage 14 | . 14 Energy Gun 11 | . 11 Ballistic Gun 12 | . 12 Peak Build Rating 9 | 9 7 Average Rating 5 | 5 5 On Entrance 3 | . 7 Avg Prop Armor Cover (%) 7 | 7 . Naked Turns . | . . Heaviest Build 88 | 13 88 Greatest Support 26 | 20 26 Greatest Overweight (x) 27 | 2 27 Average Overweight (x) 1 | . 3 Largest Inventory Capacity 25 | 8 25 Average Capacity 16 | 6 22 Most Carried 8 | 6 8 Average Carried 6 | 4 6 Final Capacity 25 | 8 25 Final Carried 6 | 6 4 Class Distribution -------------------- 100% | Mutant Dominant Class ---------------- Mutant | -10/Materials Resources | -11 -10 ----------- Run | Yrd Mat Matter Collected 360 | 284 76 Remotely . | . . Salvage Created 298 | 99 199 Parts 13 | 8 5 Haulers Intercepted . | . . Recyclers Shooed . | . . Parts Field Recycled . | . . Retrieved Matter . | . . Parts Self-Destructed . | . . Prevented . | . . Parts Restored . | . . Kills | -11 -10 ------- Run | Yrd Mat Combat Hostiles Destroyed 5 | . 5 Guns 5 | . 5 Classes Destroyed 3 | 2 1 Tunneler 2 | 2 . Recycler 1 | 1 . Grunt 5 | . 5 Best Kill Streak 2 | 2 2 Combat Bots Only 2 | . 2 Max Kills in Single Turn 1 | 1 1 Gunslinging . | . . Exploded . | . . Melee . | . . Uniques/NPCs Destroyed . | . . Combat | -11 -10 -------- Run | Yrd Mat Hostile Shots Fired 88 | . 88 Missed 24 | . 24 Hits 64 | . 64 Projectile 64 | . 64 Critical Strikes 3 | . 3 Damage Taken 886 | . 886 Core 264 | . 264 Absorbed by Shields . | . . Core Remaining (%) 100 | 100 . Volleys Fired 38 | 11 27 Largest 2 | 2 2 Hottest 70 | 70 70 Shots Fired 74 | 22 52 Gun 74 | 22 52 Cannon . | . . Launcher . | . . Special . | . . Kinetic 38 | 11 27 Thermal 36 | 11 25 Explosive . | . . Electromagnetic . | . . Robot Hit Streak 9 | 4 9 Robot Miss Streak 4 | 4 3 Penetration Max . | . . Secondary Targets . | . . Shots Hit Robots 44 | 12 32 Core Hits 16 | 4 12 Critical Kills . | . . Critical Parts Destroyed 1 | . 1 Critical Strikes 1 | . 1 Destroy 1 | . 1 Melee Attacks . | . . Impact . | . . Slashing . | . . Piercing . | . . Sneak Attacks . | . . Combat Hostiles . | . . Follow-up Attacks . | . . Damage Inflicted 565 | 155 410 Guns 565 | 155 410 Cannons . | . . Explosions . | . . Melee . | . . Ramming . | . . Kinetic 341 | 80 261 Thermal 224 | 75 149 Explosive . | . . Electromagnetic . | . . Impact . | . . Slashing . | . . Piercing . | . . Highest Corruption . | . . Average Corruption . | . . Corruption Purged . | . . Corruption Blocked . | . . Overload Shots . | . . Overflow Damage . | . . Projectiles . | . . Explosions . | . . Melee . | . . Knockbacks . | . . Impact . | . . Kinetic . | . . Secondary . | . . Self-Inflicted Damage . | . . Shots . | . . Rammed . | . . Targets Rammed . | . . Kicked . | . . Crushed . | . . Highest Temperature 41 | . 41 Average Temperature 15 | . 15 Received Heat Transfer 567 | . 567 Siege Activations . | . . Martial Activations . | . . Shielding Activations . | . . Robots Disrupted . | . . Combat Hostiles . | . . Robots Corrupted . | . . Combat Hostiles . | . . Parts Fried . | . . Impact Corruptions . | . . Robots Melted . | . . Combat Hostiles . | . . Parts Melted 1 | . 1 Heat Transferred 666 | 222 444 Parts Sabotaged . | . . Parts Stolen . | . . Parts Stripped . | . . Power Chain Reactions . | . . Alert | -11 -10 ------- Run | Yrd Mat Maximum Alert Level . | . . Low Security (%) 100 | 100 100 Level 1 . | . . Level 2 . | . . Level 3 . | . . Level 4 . | . . Level 5 . | . . High Security . | . . Max Security . | . . Peak Influence 50 | 5 50 Initial . | . . Average 11 | . 17 Influence Increases 135 | 15 120 Destroy 0b10 Robot/C 100 | . 100 Destroy 0b10 Robot/NC 15 | 15 . Destroy Leader 20 | . 20 Influence Decreases 135 | 15 120 Time Decay 105 | 15 90 Lost Part 30 | . 30 Squads Dispatched 1 | . 1 Investigation 1 | . 1 Extermination . | . . Reinforcement . | . . Assault . | . . Garrison . | . . Intercept . | . . Searches Triggered . | . . Construction Impeded . | . . Haulers Reinforced . | . . Active Scanning Responses . | . . Cargo Convoy Interrupts . | . . Stealth | -11 -10 --------- Run | Yrd Mat Distress Signals 2 | . 2 Communications Jammed . | . . Distress Signals . | . . Times Spotted 11 | . 11 Peak Tracking Total 5 | . 5 Tactical Retreats . | . . Traps | -11 -10 ------- Run | Yrd Mat Traps Triggered . | . . Indirectly . | . . Trap Hack Attempts . | . . Triggered . | . . Disarmed 3 | . 3 Reprogrammed . | . . Reused . | . . Traps Extracted . | . . Installed . | . . Triggered . | . . Machines | -11 -10 ---------- Run | Yrd Mat Machines Disabled . | . . Max in Single Turn . | . . Machines Repaired . | . . Machines Dismantled . | . . Machines Sabotaged . | . . Overloaded Fab Kills . | . . Hacking | -11 -10 --------- Run | Yrd Mat Machines Accessed 1 | . 1 Terminals 1 | . 1 Fabricators . | . . Repair Stations . | . . Recycling Units . | . . Scanalyzers . | . . Garrison Access . | . . Total Hacks 4 | . 4 Successful 2 | . 2 Failed 2 | . 2 Catastrophic . | . . Database Lockouts . | . . Manual . | . . Terminals 4 | . 4 Fabricators . | . . Repair Stations . | . . Recycling Units . | . . Scanalyzers . | . . Garrison Access . | . . Terminal Hacks 2 | . 2 Locate Traps 1 | . 1 Disarm Traps 1 | . 1 Fabricator Hacks . | . . Repair Station Hacks . | . . Recycling Unit Hacks . | . . Scanalyzer . | . . Garrison Access Hacks . | . . Unauthorized Hacks . | . . Terminals . | . . Fabricators . | . . Repair Stations . | . . Recycling Units . | . . Scanalyzers . | . . Garrison Access . | . . Data Cores Recovered . | . . Used . | . . Hacking Detections 1 | . 1 Full Trace Events 1 | . 1 Feedback Events . | . . Feedback Blocked . | . . Robot Schematics Acquired . | . . Robots Built . | . . Authchips . | . . Time . | . . Total Robot Build Rating . | . . Part Schematics Acquired . | . . Parts Built . | . . Authchips . | . . Time . | . . Total Part Build Rating . | . . Part Studies Acquired . | . . Parts Repaired . | . . Time . | . . Parts Recycled . | . . Recycled Matter . | . . Retrieved Matter . | . . Retrieved Components . | . . Parts Scanalyzed . | . . Part Schematics Acquired . | . . Parts Damaged . | . . Bothacking | -11 -10 ------------ Run | Yrd Mat Used RIF Installer . | . . Robots Hacked . | . . Non-combat . | . . Combat . | . . Robot Hacks Applied . | . . Relay Couplers Released . | . . Fabnet Peak Effective % . | . . Robots Rewired . | . . Allies Hacked . | . . Hacks Repelled . | . . Allies | -11 -10 -------- Run | Yrd Mat Total Allies . | . . Largest Group . | . . Highest-Rated Group . | . . Highest-Rated Ally . | . . Total Orders . | . . Ally Attacks . | . . Total Damage . | . . Kills . | . . Allies Corrupted . | . . Allies Melted . | . . Intel | -11 -10 ------- Run | Yrd Mat Active Infowar (turns) 139 | 84 55 Terrain 25 | 25 . Seismic 114 | 59 55 Robot Analysis Total . | . . Derelict Logs Recovered . | . . Drone Launches . | . . Drone Recoveries . | . . Exploration | -11 -10 ------------- Run | Yrd Mat Turns Passed 413 | 150 263 Spaces Moved 243 | 113 130 Core 36 | 34 2 Treads . | . . Legs . | . . Wheels 207 | 79 128 Hover . | . . Flight . | . . Fastest Speed 50 | 50 80 Average Speed 115 | 86 140 Slowest Speed 1400 | 150 1400 Overloaded Moves . | . . Propulsion Burnouts . | . . Robots Hopped . | . . Potential Cave-ins . | . . Cave-ins Triggered . | . . Exploration Rate (%) 16 | 4 28 Regions Visited 1 Branch Regions . Pre-discovered Areas . | . . Known Exits Taken . | . . Unknown Exits Taken 1 | 1 . Scrap Searched . | . . Spaces Dug . | . . Terrain Destroyed . | . . Melee . | . . Projectile . | . . AOE . | . . Terrain Rammed . | . . Walls Destroyed . | . . Machines Disabled . | . . Actions | -11 -10 --------- Run | Yrd Mat Total 309 | 142 167 Wait 1 | . 1 Move 242 | 112 130 Hop . | . . Pick Up 13 | 10 3 Fast Attach 4 | 4 . Attach 8 | 4 4 Detach . | . . Swap 1 | . 1 Drop 2 | 1 1 Fire 38 | 11 27 Melee . | . . Ram . | . . Kick . | . . Crush . | . . Escape Stasis . | . . Rewire . | . . Trap . | . . Miscellaneous . | . . Route ------- -11/Scrapyard -10/Materials History --------- Turn | Location | Event 57 | -11/Scrapyard | Discovered new exit (range 16) 151 | -11/Scrapyard | Entered Materials 304 | -10/Materials | Build established: Mutant 389 | -10/Materials | Core integrity fell below 50% 407 | -10/Materials | Core integrity fell below 20% 414 | -10/Materials | Destroyed by G-47 Trooper with Particle Gun Last Messages --------------- 00312_ Acquired 21 matter. 00317_ R-06 Scavenger collects Ion Engine. 00319_ K-01 Serf collects debris. 00348_ G-34 Mercenary destroyed. 00364_ Critical hit (Burn: +37). 00368_ W-16 Scout sends out distress signal. 00372_ Critical hit (Burn: +37). 00373_ Med. Laser destroyed. 00373_ Lgt. Ion Engine destroyed. 00376_ Wheel destroyed. 00378_ Assault Rifle destroyed. 00384_ Wheel destroyed. 00393_ M-13 Machinist repairs G-47 Trooper. 00394_ Com. Wheel destroyed. 00395_ Wheel destroyed. 00395_ M-13 Machinist repairs G-47 Trooper Lgt. Nuclear Core. 00399_ Heat Sink destroyed. 00401_ Critical hit (Burn: +37). 00406_ Assault Rifle destroyed. Map ----- +----------------------------------------------------+ | ????????????????????????????????????????????? | | ????????????????????????????????????????????? | | ????????????????????????????????????????????? | | ????????????????????????????????????????????? | | ????????????????????????????????????????????? | | ????????????????????????????????????????????? | | ????????????????????????????????????????????? | | ????????????????????????????????????????????? | | ???????????????????????????????? ?????????? | | ???????????????????????????????? #????????? | | ???????????????????????????????# #????????? | | ???????????????????????????????# #??? ????? | | ????????? ?????????????????????# #?? ?????? | | ????????? ????????????????????## ##? ?????? | | ?????????# ???????????????????# # ? ????? | | ????????"" ???????????????????#= # ?????? | | ???????#"" ??????????????????# / ??????? | | ???????#"T ??????????????????? #???????? | | ???????#"" ??????????????????? #???????? | | ????????"" ??????????????????# #????????? | | ?????????# ?????????????###### #????????? | | ????????## #????????????# #????????? | | ????????# ############# #????????? | | ????????# T g % % #????????? | | ????????# "" g #### #????????? | | ????????# = g @ #??# #????????? | | ????????# ^ %=#############k ####+#######??? | | ????????###+##??????? ???# ## #??? | | ?????????????????????"""?## ## #??? | | ?????????????????????""" # # #??? | | ??????????????????????"" # # """ """ #??? | | ???????????????????????? + + """ """ #??? | | ?????????????????????????# # """ """ #??? | | ?????????????????????????# # #??? | | ?????????????????????????## ## #??? | | ??????????????????????????# ############??? | | ??????????????????????????# #????????? | | ??????????????????????????# #????????? | | ??????????????????????????# #????????? | | ??????????????????????????#######+######????? | | ???????????????????????????# #????? | | ???????????????????????????# #????? | | ???????????????????????????# #????? | | ???????????????????????????# !#????? | | ???????????????????????????# #????? | | ???????????????????????????# #????? | | ???????????????????????????# #????? | | ???????????????????????????###+###########??? | | ?????????????????????????????# ## #??? | | ?????????????????????????????# ## """ #??? | +----------------------------------------------------+ Best States ------------- Heat Dissipation 35 Energy Generation 10 Energy Capacity 125 Matter Stores 300 Matter Capacity 300 Sight Range 16 Terrain Scan Range 16 Terrain Scan Density 10 Evasion (%) 50 Item Schematics ----------------- None Robot Schematics ------------------ None Fabricated ------------ Nothing Repaired ---------- Nothing Studied --------- None Alien Tech Used ----------------- None Achievements -------------- None Challenges ------------ None Game ------ Seed PulsePotentialPit Manual? 0 Play Time 00:08:03 Cumulative 9.5 hours Start 2026.08.05 @ 14:24:29 End 2026.08.05 @ 14:30:00 Sessions 1 Manual Loads 0 Difficulty Rogue Special Mode None Game No. 11 Rogue 11 Adventurer 0 Explorer 0 Win Type - Total 0 Types 0/0/0/0/0/0/0/0/0/0 Lore% 2 Gallery% 12 Achievement% 9 Wizard Run 0 Options --------- Layout 2 ASCII 0 Keyboard 0 Movement Mouse Keybinds 0 Fullscreen 1 Font 24/Smallcaps Map View 50x44 Zoom Use 0% Tactical HUD 1 Map Filters NONE Filters NONE Steam 1 RUN: 70091e94-28eb-4227-8d0f-779782a66133